{"text_format":"2","workbook":"xlsx","n_sheets":3,"sheets":["Лист1","Лист2","Лист3"],"not_rendered":{"charts":0,"images":0,"macros":0,"external_links":0,"defined_names":0,"comments":0,"pivot_tables":0},"unopened":[],"bounds":{"document_bytes":16777216,"sheet_cells":100000,"run_cost":"one","rows_first":2000,"rows_last":500,"rows_between":2000,"halvings":0,"cell_chars":16384,"cell_head_chars":4096},"cells_cut":0,"cells_raw":0,"read":"whole","date_system":"1900"}

{"sheet":"Лист1","index":0,"n_rows":13,"n_cols":33,"rows_kept":13,"cut":false,"hidden":false,"merged":[[3,32,4,32],[3,20,4,21],[3,24,4,25],[3,3,4,4],[3,7,4,8],[3,5,4,6],[3,23,4,23],[3,17,4,18],[3,16,4,16],[3,12,4,13],[3,14,4,15],[3,10,4,11],[3,19,4,19],[0,0,0,22],[1,0,1,22],[2,0,2,22],[3,26,4,27],[3,29,4,30]]}
["Отчет о результатах мониторинга качества финансового менеджмента,"]
["осуществляемого главными администраторами средств районного бюджета"]
["Шарангского муниципального  района на 1 июля 2016 года"]
["№","Наименование главного администратора средств районного бюджета","КВСР","1.7.1  Качество планирования расходов: сумма положительных внесенных изменений в бюджетную роспись в связи с уточнением ассигнований по решению Земского собрания Шарангского района о районном бюджете",null,"1.7.2  Качество планирования расходов: сумма отрицательных внесенных изменений в бюджетную роспись в связи с уточнением ассигнований по решению Земского собрания Шарангского района о районном бюджете",null,"1.8.  Качество планирования расходов: сумма внесенных положительных изменений в бюджетную роспись в связи с передвижками между кодами бюджетной классификации",null,"1. Финансовое планирование","2.4. Своевремен- ность принятия бюджетных обязательств в отчетном периоде",null,"2.5. Качество прогнозирования кассовых расходов, кроме муниципальных программ",null,"2.6. Качество прогнозирования кассовых расходов по муниципальным программам",null,"2.7. Качество исполнения расходов: наличие просрочен - ной кредиторс-кой задолжен-ности","2.8. Уровень подготовки платежных документов",null,"Наименование главного администратора средств районного бюджета","2.9. Уровень  использования субсидий бюджетными  и автономными учреждениями, предоставленных на  выполнение муниципальных заданий",null,"2.Исполнение бюджета в части расходов","КВСР","3.2.  Полнота зачисления   платежей в районный бюджет по главному администра -тору доходов районного бюджета, объем невыясненных поступлений",null,"3.3. Отклонение кассового исполнения по доходам от прогноза по главному администратору доходов районного бюджета",null,"3.Исполнение бюджета в части доходов","4.5.Коэффициент сложности бюджетных ассигнований",null,"4. Учет и отчетность","ВСЕГО"]
["п\\п"]
[null,null,null,"%","баллы","%","баллы","%","баллы","баллы","%","баллы","%","баллы","%","баллы","баллы","%","баллы",null,"%","баллы","баллы",null,"%","баллы","%","баллы","баллы","%","баллы","баллы","Количество баллов"]
[null,"1 группа",{"$nulls":17},"1 группа"]
[1,"Районный отдел образования","074",98.5,2,99.6,2,99.5,1,{"$f":"SUM(E8+G8+I8)","v":5},49.1,2,"-",3,95.5,2,10,93.5,1,"Районный отдел образования",82.9,1,{"$f":"SUM(N8+P8+Q8+S8+V8+L8)","v":19},"074",0,5,0,0,{"$f":"SUM(Z8+AB8)","v":5},972,3,{"$f":"SUM(AE8)","v":3},{"$f":"SUM(J8+W8+AC8+AF8)","v":32}]
[2,"Отдел культуры","057",100,3,100,3,100,3,{"$f":"SUM(E9+G9+I9)","v":9},73.099999999999994,3,97.8,2,96.1,3,10,98.3,3,"Отдел культуры",96.8,2,{"$f":"SUM(N9+P9+Q9+S9+V9+L9)","v":23},"057",0,5,0,0,{"$f":"SUM(Z9+AB9)","v":5},870,2,{"$f":"SUM(AE9)","v":2},{"$f":"SUM(J9+W9+AC9+AF9)","v":39}]
[3,"Администрация",487,94.2,1,98.4,1,99.6,2,{"$f":"SUM(E10+G10+I10)","v":4},38.5,1,76.400000000000006,1,61.6,1,10,97.8,2,"Администрация",99.2,3,{"$f":"SUM(N10+P10+Q10+S10+V10+L10)","v":18},487,0,5,-66.2,0,{"$f":"SUM(Z10+AB10)","v":5},66,1,{"$f":"SUM(AE10)","v":1},{"$f":"SUM(J10+W10+AC10+AF10)","v":28}]
[null,"2 группа",{"$nulls":17},"2 группа"]
[2,"Управление сельского хозяйства","082",100,2,100,2,99.9,1,5,80.599999999999994,1,"-",2,91.1,2,10,98.5,2,"Управление сельского хозяйства","-",null,{"$f":"SUM(N12+P12+Q12+S12+V12+L12)","v":17},"082",0,5,0,0,5,53,2,2,{"$f":"SUM(J12+W12+AC12+AF12)","v":29}]
[3,"Финансовое управление","001",87.2,1,95,1,99.9,1,3,98.3,2,0.6,1,74.3,1,10,98.4,1,"Финансовое управление","-",null,{"$f":"SUM(N13+P13+Q13+S13+V13+L13)","v":15},"001",0,5,0,0,5,33,1,1,{"$f":"SUM(J13+W13+AC13+AF13)","v":24}]

{"sheet":"Лист2","index":1,"n_rows":0,"n_cols":0,"rows_kept":0,"cut":false,"hidden":false,"merged":[]}

{"sheet":"Лист3","index":2,"n_rows":0,"n_cols":0,"rows_kept":0,"cut":false,"hidden":false,"merged":[]}